[Event "Late-Titled-Tuesday-Blitz-October-24-2023"]
[Site "Chess.com"]
[Date "2023.10.24"]
[Round "11"]
[White "Chessbard1972"]
[Black "MaxLeto"]
[Result "0-1"]
[WhiteElo "2341"]
[BlackElo "2545"]
[TimeControl "180+1"]
[EndTime "16:07:56 PDT"]
[Termination "MaxLeto won on time"]

1. d4 {[%clk 0:02:55.3]} 1... h5 {[%clk 0:02:57]} 2. c4 {[%clk 0:02:49.4]} 2...
h4 {[%clk 0:02:57.9]} 3. h3 {[%clk 0:02:47.2]} 3... c6 {[%clk 0:02:57.2]} 4. Nf3
{[%clk 0:02:45.7]} 4... d5 {[%clk 0:02:56.7]} 5. Qc2 {[%clk 0:02:43.9]} 5... g6
{[%clk 0:02:55.8]} 6. Bg5 {[%clk 0:02:41.4]} 6... Nh6 {[%clk 0:02:46]} 7. Bxh4
{[%clk 0:02:36]} 7... Nf5 {[%clk 0:02:45.2]} 8. Bg5 {[%clk 0:02:36.3]} 8... dxc4
{[%clk 0:02:32]} 9. Qxc4 {[%clk 0:02:32.6]} 9... Be6 {[%clk 0:02:30.2]} 10. Qd3
{[%clk 0:02:26.4]} 10... Qb6 {[%clk 0:02:11]} 11. Bc1 {[%clk 0:02:17.9]} 11...
Bg7 {[%clk 0:01:59.8]} 12. e3 {[%clk 0:02:17]} 12... Na6 {[%clk 0:01:59.8]} 13.
a3 {[%clk 0:02:14.7]} 13... O-O-O {[%clk 0:01:58.3]} 14. Nc3 {[%clk 0:02:12]}
14... c5 {[%clk 0:01:56.5]} 15. d5 {[%clk 0:02:10.2]} 15... Bxc3+ {[%clk
0:01:43.5]} 16. Qxc3 {[%clk 0:02:08.5]} 16... Bxd5 {[%clk 0:01:40.7]} 17. Be2
{[%clk 0:02:04.1]} 17... Kb8 {[%clk 0:01:33]} 18. O-O {[%clk 0:02:02.8]} 18...
f6 {[%clk 0:01:24.5]} 19. Bd2 {[%clk 0:01:47.1]} 19... Nd6 {[%clk 0:00:45.2]}
20. Qc1 {[%clk 0:01:32.2]} 20... Ne4 {[%clk 0:00:38.6]} 21. Bc3 {[%clk
0:01:29.9]} 21... g5 {[%clk 0:00:36.7]} 22. Nd2 {[%clk 0:01:28.1]} 22... Nxd2
{[%clk 0:00:22]} 23. Bxd2 {[%clk 0:01:27.1]} 23... Qc6 {[%clk 0:00:13.5]} 24. f3
{[%clk 0:01:25.4]} 24... Nc7 {[%clk 0:00:13.9]} 25. e4 {[%clk 0:01:23.9]} 25...
Be6 {[%clk 0:00:10.7]} 26. b4 {[%clk 0:01:23.2]} 26... c4 {[%clk 0:00:09.8]} 27.
a4 {[%clk 0:01:18.5]} 27... Qd6 {[%clk 0:00:08.9]} 28. Bc3 {[%clk 0:01:11.6]}
28... Bxh3 {[%clk 0:00:06.2]} 29. f4 {[%clk 0:01:04.1]} 29... gxf4 {[%clk
0:00:05.4]} 30. Qxf4 {[%clk 0:01:02]} 30... Qxf4 {[%clk 0:00:03.2]} 31. Rxf4
{[%clk 0:01:02.3]} 31... Rdg8 {[%clk 0:00:04]} 32. Bf1 {[%clk 0:01:00.6]} 32...
Be6 {[%clk 0:00:03.4]} 33. b5 {[%clk 0:00:56]} 33... Rh5 {[%clk 0:00:03.3]} 34.
Rb1 {[%clk 0:00:54.3]} 34... Rhg5 {[%clk 0:00:03.4]} 35. Bd4 {[%clk 0:00:50.1]}
35... b6 {[%clk 0:00:03.4]} 36. Rc1 {[%clk 0:00:44.2]} 36... Ne8 {[%clk
0:00:02.2]} 37. Rf2 {[%clk 0:00:42.3]} 37... Nd6 {[%clk 0:00:02.4]} 38. Re2
{[%clk 0:00:41]} 38... Rg4 {[%clk 0:00:02.4]} 39. Bf2 {[%clk 0:00:34.1]} 39...
Nxe4 {[%clk 0:00:01.7]} 40. Be3 {[%clk 0:00:31.9]} 40... Bd5 {[%clk 0:00:01.7]}
41. Rec2 {[%clk 0:00:28.4]} 41... e6 {[%clk 0:00:02.3]} 42. a5 {[%clk
0:00:21.9]} 42... f5 {[%clk 0:00:02.4]} 43. axb6 {[%clk 0:00:21.1]} 43... axb6
{[%clk 0:00:03.3]} 44. Bxb6 {[%clk 0:00:20.9]} 44... Kb7 {[%clk 0:00:04.2]} 45.
Ba5 {[%clk 0:00:16.6]} 45... Ng3 {[%clk 0:00:04.8]} 46. Rf2 {[%clk 0:00:08.4]}
46... Nxf1 {[%clk 0:00:04.7]} 47. Kxf1 {[%clk 0:00:08.8]} 47... Rxg2 {[%clk
0:00:05]} 48. Rxg2 {[%clk 0:00:09.1]} 48... Rxg2 {[%clk 0:00:05.6]} 49. Rxc4
{[%clk 0:00:07.7]} 49... Ra2 {[%clk 0:00:03.3]} 50. Rc7+ {[%clk 0:00:06.9]}
50... Kb8 {[%clk 0:00:03.8]} 51. Bb6 {[%clk 0:00:06.3]} 51... Rb2 {[%clk
0:00:04]} 52. Rc5 {[%clk 0:00:05]} 52... Kb7 {[%clk 0:00:03.4]} 53. Bd8 {[%clk
0:00:04]} 53... f4 {[%clk 0:00:01.6]} 0-1

[Event "Late-Titled-Tuesday-Blitz-October-24-2023"]
[Site "Chess.com"]
[Date "2023.10.24"]
[Round "11"]
[White "chesspreceptor"]
[Black "Semetey"]
[Result "1-0"]
[WhiteElo "2639"]
[BlackElo "2526"]
[TimeControl "180+1"]
[EndTime "16:08:03 PDT"]
[Termination "chesspreceptor won on time"]

1. d4 {[%clk 0:03:00.9]} 1... a6 {[%clk 0:02:57.3]} 2. e4 {[%clk 0:02:58.8]}
2... g6 {[%clk 0:02:54.4]} 3. h4 {[%clk 0:02:57.2]} 3... h5 {[%clk 0:02:51.9]}
4. Nf3 {[%clk 0:02:54]} 4... Bg7 {[%clk 0:02:51.8]} 5. e5 {[%clk 0:02:54.4]}
5... d6 {[%clk 0:02:51.2]} 6. exd6 {[%clk 0:02:50.5]} 6... cxd6 {[%clk
0:02:50.4]} 7. Be2 {[%clk 0:02:51]} 7... Nh6 {[%clk 0:02:47.5]} 8. Bg5 {[%clk
0:02:50]} 8... Nf5 {[%clk 0:02:46.8]} 9. c3 {[%clk 0:02:48.7]} 9... Nc6 {[%clk
0:02:46.2]} 10. Na3 {[%clk 0:02:46.1]} 10... b5 {[%clk 0:02:44.3]} 11. O-O
{[%clk 0:02:42.4]} 11... O-O {[%clk 0:02:41.5]} 12. Rc1 {[%clk 0:02:39.3]} 12...
Bd7 {[%clk 0:02:41]} 13. Re1 {[%clk 0:02:32.8]} 13... Re8 {[%clk 0:02:39.2]} 14.
Bd3 {[%clk 0:02:32.1]} 14... Rb8 {[%clk 0:02:38]} 15. Nc2 {[%clk 0:02:29.9]}
15... a5 {[%clk 0:02:29.4]} 16. Qd2 {[%clk 0:02:25.2]} 16... Qb6 {[%clk
0:02:28.3]} 17. Ne3 {[%clk 0:02:24.9]} 17... Nxe3 {[%clk 0:02:23.1]} 18. Rxe3
{[%clk 0:02:25.8]} 18... b4 {[%clk 0:02:19.9]} 19. Rce1 {[%clk 0:02:24.7]} 19...
bxc3 {[%clk 0:02:19.4]} 20. bxc3 {[%clk 0:02:24.6]} 20... Bg4 {[%clk 0:02:09.1]}
21. Nh2 {[%clk 0:02:16.5]} 21... Bd7 {[%clk 0:01:57.4]} 22. Bxe7 {[%clk
0:02:11.4]} 22... Nxe7 {[%clk 0:01:55.3]} 23. Rxe7 {[%clk 0:02:12.3]} 23... Rxe7
{[%clk 0:01:49.6]} 24. Rxe7 {[%clk 0:02:13.2]} 24... Qd8 {[%clk 0:01:49.7]} 25.
Qg5 {[%clk 0:01:48.1]} 25... Bf8 {[%clk 0:01:24.8]} 26. Re2 {[%clk 0:01:34.5]}
26... Qxg5 {[%clk 0:01:23.4]} 27. hxg5 {[%clk 0:01:35.4]} 27... a4 {[%clk
0:01:19.2]} 28. Bc4 {[%clk 0:01:30.3]} 28... Rb1+ {[%clk 0:01:15.6]} 29. Nf1
{[%clk 0:01:29.4]} 29... a3 {[%clk 0:01:12.6]} 30. f3 {[%clk 0:01:22.6]} 30...
Rb2 {[%clk 0:01:03.6]} 31. Kf2 {[%clk 0:01:20.2]} 31... Be6 {[%clk 0:01:03.2]}
32. Bxe6 {[%clk 0:01:17.1]} 32... fxe6 {[%clk 0:01:04.1]} 33. Rxb2 {[%clk
0:01:13.9]} 33... axb2 {[%clk 0:01:03.5]} 34. Nd2 {[%clk 0:01:14.4]} 34... e5
{[%clk 0:00:53.4]} 35. a4 {[%clk 0:01:12.5]} 35... Be7 {[%clk 0:00:53]} 36. a5
{[%clk 0:01:08.4]} 36... Bxg5 {[%clk 0:00:53.4]} 37. Nb1 {[%clk 0:01:08.3]}
37... Bd8 {[%clk 0:00:51.6]} 38. a6 {[%clk 0:01:06.4]} 38... Bb6 {[%clk
0:00:51.6]} 39. Ke3 {[%clk 0:01:07]} 39... Kf7 {[%clk 0:00:50.3]} 40. Kd3 {[%clk
0:01:07.1]} 40... exd4 {[%clk 0:00:49.1]} 41. cxd4 {[%clk 0:01:06.9]} 41... Ke6
{[%clk 0:00:47.2]} 42. Nc3 {[%clk 0:01:06.4]} 42... d5 {[%clk 0:00:38.9]} 43.
Nb1 {[%clk 0:01:01]} 43... h4 {[%clk 0:00:33.8]} 44. Kc3 {[%clk 0:01:00.1]}
44... Kd6 {[%clk 0:00:31.9]} 45. Kxb2 {[%clk 0:00:59.8]} 45... Bxd4+ {[%clk
0:00:32]} 46. Kb3 {[%clk 0:00:56.7]} 46... Kc6 {[%clk 0:00:30.4]} 47. Na3 {[%clk
0:00:51.5]} 47... Kb6 {[%clk 0:00:28.3]} 48. Nc2 {[%clk 0:00:44.3]} 48... Bc5
{[%clk 0:00:27.9]} 49. Nb4 {[%clk 0:00:44.4]} 49... d4 {[%clk 0:00:12.9]} 50.
Kc4 {[%clk 0:00:39.8]} 50... g5 {[%clk 0:00:08.5]} 51. Nd5+ {[%clk 0:00:37.5]}
51... Kc6 {[%clk 0:00:07.8]} 52. Ne7+ {[%clk 0:00:37]} 52... Kb6 {[%clk
0:00:04.7]} 53. Nf5 {[%clk 0:00:34.8]} 53... d3 {[%clk 0:00:02.4]} 54. Kxd3
{[%clk 0:00:34]} 54... Kxa6 {[%clk 0:00:03.3]} 55. Ke4 {[%clk 0:00:33.7]} 55...
Kb5 {[%clk 0:00:04.2]} 56. Nh6 {[%clk 0:00:32.7]} 56... Kc4 {[%clk 0:00:04]} 57.
Nf7 {[%clk 0:00:32.8]} 57... Be7 {[%clk 0:00:03.8]} 58. Kf5 {[%clk 0:00:32.5]}
58... Kd3 {[%clk 0:00:04.4]} 59. Nxg5 {[%clk 0:00:32.9]} 59... Ke2 {[%clk
0:00:04]} 60. Kg4 {[%clk 0:00:31.7]} 60... Kf2 {[%clk 0:00:03.4]} 61. g3 {[%clk
0:00:23.4]} 61... Kg2 {[%clk 0:00:04.3]} 62. gxh4 {[%clk 0:00:23.1]} 1-0

[Event "Late-Titled-Tuesday-Blitz-October-24-2023"]
[Site "Chess.com"]
[Date "2023.10.24"]
[Round "11"]
[White "wild3000"]
[Black "zajka-molotok"]
[Result "0-1"]
[WhiteElo "2398"]
[BlackElo "2536"]
[TimeControl "180+1"]
[EndTime "16:08:09 PDT"]
[Termination "zajka-molotok won by checkmate"]

1. e4 {[%clk 0:02:59.9]} 1... c5 {[%clk 0:02:59.3]} 2. Nf3 {[%clk 0:02:59.2]}
2... Nc6 {[%clk 0:02:59.6]} 3. Bb5 {[%clk 0:02:58.6]} 3... e6 {[%clk 0:02:57.2]}
4. O-O {[%clk 0:02:57.1]} 4... Nge7 {[%clk 0:02:56.6]} 5. c3 {[%clk 0:02:57.1]}
5... a6 {[%clk 0:02:56.4]} 6. Ba4 {[%clk 0:02:57.5]} 6... b5 {[%clk 0:02:56.3]}
7. Bc2 {[%clk 0:02:58.1]} 7... d5 {[%clk 0:02:54]} 8. a4 {[%clk 0:02:52.9]} 8...
Bb7 {[%clk 0:02:50.1]} 9. Qe2 {[%clk 0:02:45.6]} 9... b4 {[%clk 0:02:45.3]} 10.
d4 {[%clk 0:02:38.5]} 10... bxc3 {[%clk 0:02:31.2]} 11. bxc3 {[%clk 0:02:17.1]}
11... cxd4 {[%clk 0:02:31.3]} 12. cxd4 {[%clk 0:02:17.2]} 12... Nb4 {[%clk
0:02:30.8]} 13. e5 {[%clk 0:02:01.6]} 13... a5 {[%clk 0:02:18.8]} 14. Nc3 {[%clk
0:01:57.7]} 14... Rc8 {[%clk 0:02:15.2]} 15. Bb2 {[%clk 0:01:33.4]} 15... Ba6
{[%clk 0:02:09.5]} 16. Qd2 {[%clk 0:01:16.4]} 16... Bxf1 {[%clk 0:02:07.9]} 17.
Rxf1 {[%clk 0:01:15.3]} 17... Nxc2 {[%clk 0:02:07.8]} 18. Qxc2 {[%clk
0:01:14.4]} 18... Nc6 {[%clk 0:02:08.4]} 19. Qe2 {[%clk 0:01:05.1]} 19... Be7
{[%clk 0:02:04.9]} 20. Nb5 {[%clk 0:01:04.8]} 20... O-O {[%clk 0:02:01]} 21. Nd2
{[%clk 0:00:58]} 21... Nb4 {[%clk 0:01:59.9]} 22. Ba3 {[%clk 0:00:38.6]} 22...
Rc2 {[%clk 0:01:53.6]} 23. Qd1 {[%clk 0:00:37.1]} 23... Qc8 {[%clk 0:01:43]} 24.
Nb3 {[%clk 0:00:29.1]} 24... Qc4 {[%clk 0:01:22.6]} 25. Nxa5 {[%clk 0:00:25.7]}
25... Qa2 {[%clk 0:01:22.2]} 26. Qa1 {[%clk 0:00:17.7]} 26... Rxf2 {[%clk
0:01:14.6]} 27. Qxa2 {[%clk 0:00:11.4]} 27... Rxa2 {[%clk 0:01:12.3]} 28. Rb1
{[%clk 0:00:08.3]} 28... Nc6 {[%clk 0:01:00.4]} 29. Bxe7 {[%clk 0:00:06.6]}
29... Nxe7 {[%clk 0:00:59]} 30. Nc3 {[%clk 0:00:04.3]} 30... Ra3 {[%clk
0:00:57.4]} 31. Rb3 {[%clk 0:00:03.6]} 31... Rxb3 {[%clk 0:00:56.8]} 32. Nxb3
{[%clk 0:00:04.5]} 32... Rb8 {[%clk 0:00:54.6]} 33. Nb5 {[%clk 0:00:04.5]} 33...
Nc6 {[%clk 0:00:53.1]} 34. Nc5 {[%clk 0:00:03.9]} 34... Ra8 {[%clk 0:00:50.7]}
35. Kf2 {[%clk 0:00:03.5]} 35... f6 {[%clk 0:00:39.3]} 36. exf6 {[%clk
0:00:03.5]} 36... gxf6 {[%clk 0:00:40.2]} 37. Ke3 {[%clk 0:00:04.2]} 37... Kf7
{[%clk 0:00:39.6]} 38. Kd3 {[%clk 0:00:04.4]} 38... e5 {[%clk 0:00:38.2]} 39.
dxe5 {[%clk 0:00:03.8]} 39... fxe5 {[%clk 0:00:38.3]} 40. Kc3 {[%clk 0:00:04]}
40... d4+ {[%clk 0:00:37.8]} 41. Kc4 {[%clk 0:00:03.9]} 41... Kf6 {[%clk
0:00:33.7]} 42. Nc7 {[%clk 0:00:03.5]} 42... Rc8 {[%clk 0:00:31.8]} 43. Nd5+
{[%clk 0:00:03.4]} 43... Kf5 {[%clk 0:00:29.8]} 44. h3 {[%clk 0:00:04.3]} 44...
e4 {[%clk 0:00:21.5]} 45. g4+ {[%clk 0:00:03.7]} 45... Ke5 {[%clk 0:00:20.4]}
46. Nb6 {[%clk 0:00:03.6]} 46... Na5+ {[%clk 0:00:19.1]} 47. Kb5 {[%clk
0:00:03.6]} 47... Rxc5+ {[%clk 0:00:18]} 48. Kxc5 {[%clk 0:00:04]} 48... e3
{[%clk 0:00:17.1]} 49. Nd7+ {[%clk 0:00:02.4]} 49... Kf4 {[%clk 0:00:16.5]} 50.
Nf6 {[%clk 0:00:03.3]} 50... e2 {[%clk 0:00:16.3]} 51. Kxd4 {[%clk 0:00:01.9]}
51... e1=Q {[%clk 0:00:15.7]} 52. Nd5+ {[%clk 0:00:02.8]} 52... Kf3 {[%clk
0:00:15.5]} 53. Kc5 {[%clk 0:00:02.5]} 53... Qc1+ {[%clk 0:00:14.3]} 54. Kd6
{[%clk 0:00:02.8]} 54... Nc4+ {[%clk 0:00:13.5]} 55. Ke6 {[%clk 0:00:02.8]}
55... Ne3 {[%clk 0:00:13.9]} 56. g5 {[%clk 0:00:03]} 56... Nxd5 {[%clk
0:00:13.5]} 57. Kxd5 {[%clk 0:00:03.9]} 57... Qxg5+ {[%clk 0:00:13.4]} 58. Kc4
{[%clk 0:00:04]} 58... Qa5 {[%clk 0:00:13.8]} 59. Kb3 {[%clk 0:00:04.1]} 59...
h5 {[%clk 0:00:13.6]} 60. h4 {[%clk 0:00:05]} 60... Ke3 {[%clk 0:00:13.2]} 61.
Ka3 {[%clk 0:00:05.9]} 61... Kd3 {[%clk 0:00:13.3]} 62. Kb3 {[%clk 0:00:06.5]}
62... Qb6+ {[%clk 0:00:13.2]} 63. Ka3 {[%clk 0:00:06.7]} 63... Kc3 {[%clk
0:00:13.2]} 64. Ka2 {[%clk 0:00:06.5]} 64... Qb2# {[%clk 0:00:13.4]} 0-1

[Event "Late-Titled-Tuesday-Blitz-October-24-2023"]
[Site "Chess.com"]
[Date "2023.10.24"]
[Round "11"]
[White "Elbebiber"]
[Black "cthake"]
[Result "1/2-1/2"]
[WhiteElo "2135"]
[BlackElo "1928"]
[TimeControl "180+1"]
[EndTime "16:08:17 PDT"]
[Termination "Game drawn - insufficient material"]

1. f4 {[%clk 0:03:00.9]} 1... d5 {[%clk 0:02:58]} 2. Nf3 {[%clk 0:03:00.4]} 2...
b6 {[%clk 0:02:54.1]} 3. e3 {[%clk 0:02:58.8]} 3... Bb7 {[%clk 0:02:54.2]} 4. b3
{[%clk 0:02:57.6]} 4... Nf6 {[%clk 0:02:52.1]} 5. Bb2 {[%clk 0:02:57.7]} 5... g6
{[%clk 0:02:52.1]} 6. Be2 {[%clk 0:02:51.3]} 6... Bg7 {[%clk 0:02:52.2]} 7. O-O
{[%clk 0:02:51.4]} 7... O-O {[%clk 0:02:51.6]} 8. h3 {[%clk 0:02:43]} 8... c5
{[%clk 0:02:51.7]} 9. d3 {[%clk 0:02:39.1]} 9... e6 {[%clk 0:02:51.5]} 10. Ne5
{[%clk 0:02:36.9]} 10... Nc6 {[%clk 0:02:48]} 11. Nd2 {[%clk 0:02:36]} 11...
Nxe5 {[%clk 0:02:46.5]} 12. Bxe5 {[%clk 0:02:35.4]} 12... Nd7 {[%clk 0:02:45.1]}
13. Bxg7 {[%clk 0:02:34.2]} 13... Kxg7 {[%clk 0:02:44.8]} 14. Nf3 {[%clk
0:02:34.5]} 14... f6 {[%clk 0:02:32.6]} 15. Qd2 {[%clk 0:02:26.9]} 15... h5
{[%clk 0:02:30.2]} 16. Rae1 {[%clk 0:02:19.2]} 16... Qc7 {[%clk 0:02:27.8]} 17.
Bd1 {[%clk 0:02:07.8]} 17... Rae8 {[%clk 0:02:26.4]} 18. c4 {[%clk 0:01:57]}
18... a6 {[%clk 0:02:21.9]} 19. e4 {[%clk 0:01:51]} 19... d4 {[%clk 0:02:15.6]}
20. g3 {[%clk 0:01:43.4]} 20... e5 {[%clk 0:02:11.5]} 21. Kh2 {[%clk 0:01:37]}
21... Bc8 {[%clk 0:02:08]} 22. Rf2 {[%clk 0:01:30.3]} 22... Qd6 {[%clk
0:02:06.3]} 23. Ref1 {[%clk 0:01:28.2]} 23... Qe6 {[%clk 0:01:59.8]} 24. Ng1
{[%clk 0:01:26.2]} 24... f5 {[%clk 0:01:50.1]} 25. exf5 {[%clk 0:01:20.9]} 25...
Rxf5 {[%clk 0:01:46.2]} 26. fxe5 {[%clk 0:01:17.6]} 26... Rxf2+ {[%clk
0:01:42.7]} 27. Qxf2 {[%clk 0:01:15.2]} 27... Nxe5 {[%clk 0:01:42.8]} 28. Be2
{[%clk 0:01:08.4]} 28... b5 {[%clk 0:01:37.2]} 29. Qf4 {[%clk 0:01:06]} 29...
bxc4 {[%clk 0:01:26.5]} 30. bxc4 {[%clk 0:01:05.8]} 30... a5 {[%clk 0:01:25.8]}
31. Rf2 {[%clk 0:00:59.2]} 31... Bd7 {[%clk 0:01:23.9]} 32. Bf1 {[%clk 0:00:58]}
32... a4 {[%clk 0:01:23]} 33. a3 {[%clk 0:00:57.1]} 33... Bc6 {[%clk 0:01:09]}
34. Qg5 {[%clk 0:00:51.6]} 34... Re7 {[%clk 0:01:00.8]} 35. Re2 {[%clk 0:00:46]}
35... Qf6 {[%clk 0:00:51.9]} 36. Qxf6+ {[%clk 0:00:45.3]} 36... Kxf6 {[%clk
0:00:52.1]} 37. Rf2+ {[%clk 0:00:44.7]} 37... Kg7 {[%clk 0:00:51.6]} 38. Be2
{[%clk 0:00:39.3]} 38... Rf7 {[%clk 0:00:49.9]} 39. Rxf7+ {[%clk 0:00:38.4]}
39... Kxf7 {[%clk 0:00:50.2]} 40. g4 {[%clk 0:00:35.9]} 40... hxg4 {[%clk
0:00:49.8]} 41. hxg4 {[%clk 0:00:36.8]} 41... Kf6 {[%clk 0:00:49.7]} 42. Kg3
{[%clk 0:00:37.4]} 42... g5 {[%clk 0:00:45.9]} 43. Nh3 {[%clk 0:00:34.7]} 43...
Kg6 {[%clk 0:00:44.2]} 44. Nf2 {[%clk 0:00:34.8]} 44... Kf6 {[%clk 0:00:43.2]}
45. Nd1 {[%clk 0:00:28.6]} 45... Ke6 {[%clk 0:00:38]} 46. Nb2 {[%clk 0:00:28.6]}
46... Kd6 {[%clk 0:00:36.3]} 47. Kf2 {[%clk 0:00:27.8]} 47... Bd7 {[%clk
0:00:35.3]} 48. Kg3 {[%clk 0:00:27.8]} 48... Bc6 {[%clk 0:00:35.2]} 49. Nd1
{[%clk 0:00:25.3]} 49... Bd7 {[%clk 0:00:30.5]} 50. Nf2 {[%clk 0:00:24.9]} 50...
Bc6 {[%clk 0:00:30.5]} 51. Nh3 {[%clk 0:00:25]} 51... Nf7 {[%clk 0:00:26]} 52.
Bf3 {[%clk 0:00:22.6]} 52... Bxf3 {[%clk 0:00:21]} 53. Kxf3 {[%clk 0:00:23.5]}
53... Ne5+ {[%clk 0:00:21.1]} 54. Ke4 {[%clk 0:00:24.1]} 54... Nxg4 {[%clk
0:00:20.9]} 55. Nxg5 {[%clk 0:00:24.6]} 55... Nf2+ {[%clk 0:00:21.1]} 56. Kf3
{[%clk 0:00:23.1]} 56... Nxd3 {[%clk 0:00:20.5]} 57. Ne4+ {[%clk 0:00:21.6]}
57... Ke5 {[%clk 0:00:19.2]} 58. Nd2 {[%clk 0:00:21.2]} 58... Nb2 {[%clk
0:00:17.4]} 59. Ke2 {[%clk 0:00:20.9]} 59... Kf4 {[%clk 0:00:14.6]} 60. Nb1
{[%clk 0:00:18]} 60... d3+ {[%clk 0:00:13.7]} 61. Kd2 {[%clk 0:00:18.2]} 61...
Nxc4+ {[%clk 0:00:12.8]} 62. Kxd3 {[%clk 0:00:18.7]} 62... Nxa3 {[%clk
0:00:11.2]} 63. Nxa3 {[%clk 0:00:18.2]} 63... c4+ {[%clk 0:00:11.6]} 64. Kxc4
{[%clk 0:00:18.6]} 64... Ke3 {[%clk 0:00:11.5]} 65. Kc3 {[%clk 0:00:19]} 65...
Ke2 {[%clk 0:00:11.4]} 66. Nc4 {[%clk 0:00:18.7]} 66... Kd1 {[%clk 0:00:12.3]}
67. Kb2 {[%clk 0:00:18.7]} 67... Ke2 {[%clk 0:00:13.2]} 68. Ka3 {[%clk
0:00:19.2]} 68... Kd3 {[%clk 0:00:12.8]} 69. Nd6 {[%clk 0:00:19.3]} 69... Kd4
{[%clk 0:00:12.6]} 70. Nb7 {[%clk 0:00:19.7]} 70... Kd5 {[%clk 0:00:12.9]} 71.
Nd8 {[%clk 0:00:20]} 71... Kd6 {[%clk 0:00:12.8]} 72. Nf7+ {[%clk 0:00:20.3]}
72... Ke7 {[%clk 0:00:12.9]} 73. Ng5 {[%clk 0:00:21.1]} 73... Kf6 {[%clk
0:00:13.2]} 74. Nf3 {[%clk 0:00:22]} 74... Kf5 {[%clk 0:00:13.5]} 75. Ne1 {[%clk
0:00:22.8]} 75... Kf4 {[%clk 0:00:13.9]} 76. Nc2 {[%clk 0:00:23.4]} 76... Kf3
{[%clk 0:00:13.9]} 77. Na1 {[%clk 0:00:24.3]} 77... Ke2 {[%clk 0:00:14.1]} 78.
Nc2 {[%clk 0:00:24.9]} 78... Kd1 {[%clk 0:00:14.2]} 79. Nb4 {[%clk 0:00:25.8]}
79... Kd2 {[%clk 0:00:14.1]} 80. Kxa4 {[%clk 0:00:25.8]} 1/2-1/2

[Event "Late-Titled-Tuesday-Blitz-October-24-2023"]
[Site "Chess.com"]
[Date "2023.10.24"]
[Round "11"]
[White "Mikedannnn"]
[Black "BeanScreen"]
[Result "1/2-1/2"]
[WhiteElo "2587"]
[BlackElo "2706"]
[TimeControl "180+1"]
[EndTime "16:08:24 PDT"]
[Termination "Game drawn by repetition"]

1. e4 {[%clk 0:03:00.9]} 1... e5 {[%clk 0:02:59.8]} 2. Nf3 {[%clk 0:03:00.5]}
2... Nc6 {[%clk 0:03:00.4]} 3. Bb5 {[%clk 0:03:01]} 3... a6 {[%clk 0:03:00.6]}
4. Bxc6 {[%clk 0:03:01.4]} 4... dxc6 {[%clk 0:03:01.5]} 5. d4 {[%clk 0:03:00.8]}
5... exd4 {[%clk 0:03:00.1]} 6. Qxd4 {[%clk 0:03:00.9]} 6... Qxd4 {[%clk
0:02:59.8]} 7. Nxd4 {[%clk 0:03:01.8]} 7... Bd7 {[%clk 0:03:00.1]} 8. Nc3 {[%clk
0:03:01.6]} 8... O-O-O {[%clk 0:03:00.7]} 9. Bf4 {[%clk 0:02:54.4]} 9... Ne7
{[%clk 0:02:53.7]} 10. O-O-O {[%clk 0:02:48.5]} 10... Ng6 {[%clk 0:02:52.6]} 11.
Bg3 {[%clk 0:02:45.4]} 11... h5 {[%clk 0:02:52.5]} 12. h3 {[%clk 0:02:43.1]}
12... h4 {[%clk 0:02:51.9]} 13. Bh2 {[%clk 0:02:42.7]} 13... Bc5 {[%clk
0:02:50.2]} 14. Nce2 {[%clk 0:02:24]} 14... Rh5 {[%clk 0:02:41.4]} 15. f4 {[%clk
0:02:13.4]} 15... Re8 {[%clk 0:02:38.6]} 16. Nc3 {[%clk 0:02:05.1]} 16... Bb4
{[%clk 0:02:32.1]} 17. Rhe1 {[%clk 0:02:00.3]} 17... c5 {[%clk 0:02:10.7]} 18.
Nf3 {[%clk 0:01:59.9]} 18... Bc6 {[%clk 0:02:02.5]} 19. f5 {[%clk 0:01:50.7]}
19... Nf8 {[%clk 0:01:44]} 20. Ne5 {[%clk 0:01:49.6]} 20... Bxc3 {[%clk
0:01:41.6]} 21. bxc3 {[%clk 0:01:48.8]} 21... Rg5 {[%clk 0:01:34.1]} 22. Rd2
{[%clk 0:01:21.7]} 22... Nd7 {[%clk 0:01:17.8]} 23. Nxc6 {[%clk 0:01:03.6]}
23... bxc6 {[%clk 0:01:18.7]} 24. Bf4 {[%clk 0:01:01]} 24... Rxf5 {[%clk
0:01:16]} 25. exf5 {[%clk 0:00:35.4]} 25... Rxe1+ {[%clk 0:01:15]} 26. Kb2
{[%clk 0:00:34]} 26... Nb6 {[%clk 0:01:10.4]} 27. Rf2 {[%clk 0:00:30.5]} 27...
Kb7 {[%clk 0:00:50.2]} 28. Bg5 {[%clk 0:00:30.4]} 28... a5 {[%clk 0:00:29]} 29.
Bxh4 {[%clk 0:00:29.3]} 29... a4 {[%clk 0:00:20.6]} 30. Rf4 {[%clk 0:00:29.3]}
30... Rg1 {[%clk 0:00:19.4]} 31. g4 {[%clk 0:00:28.6]} 31... Ka6 {[%clk
0:00:19.7]} 32. Bf2 {[%clk 0:00:27.3]} 32... Rf1 {[%clk 0:00:16.7]} 33. Be3
{[%clk 0:00:27.4]} 33... Rh1 {[%clk 0:00:13.9]} 34. Bxc5 {[%clk 0:00:27.3]}
34... Rxh3 {[%clk 0:00:13.2]} 35. Bxb6 {[%clk 0:00:16.1]} 35... cxb6 {[%clk
0:00:14.1]} 36. Rxa4+ {[%clk 0:00:16.5]} 36... Kb5 {[%clk 0:00:14.8]} 37. Re4
{[%clk 0:00:16.6]} 37... Rg3 {[%clk 0:00:15.1]} 38. a4+ {[%clk 0:00:15.2]} 38...
Ka5 {[%clk 0:00:13.7]} 39. Kb3 {[%clk 0:00:15.6]} 39... b5 {[%clk 0:00:07.4]}
40. axb5 {[%clk 0:00:15.3]} 40... Kxb5 {[%clk 0:00:08.3]} 41. Re7 {[%clk
0:00:11.4]} 41... Rxg4 {[%clk 0:00:08.1]} 42. Rxf7 {[%clk 0:00:11.1]} 42... Kc5
{[%clk 0:00:08.2]} 43. c4 {[%clk 0:00:10.3]} 43... Rg3+ {[%clk 0:00:06.4]} 44.
c3 {[%clk 0:00:10.5]} 44... Kd6 {[%clk 0:00:05.5]} 45. f6 {[%clk 0:00:09.9]}
45... g5 {[%clk 0:00:03]} 46. Rg7 {[%clk 0:00:09.4]} 46... Ke6 {[%clk
0:00:03.5]} 47. f7 {[%clk 0:00:09.6]} 47... Ke7 {[%clk 0:00:04]} 48. Kb4 {[%clk
0:00:09.2]} 48... Kf8 {[%clk 0:00:04.5]} 49. Rg6 {[%clk 0:00:09]} 49... Kxf7
{[%clk 0:00:04.5]} 50. Rxc6 {[%clk 0:00:09.6]} 50... g4 {[%clk 0:00:05.1]} 51.
Rc7+ {[%clk 0:00:09.7]} 51... Kf6 {[%clk 0:00:04.8]} 52. c5 {[%clk 0:00:09.9]}
52... Rg1 {[%clk 0:00:03.9]} 53. Rc8 {[%clk 0:00:10.2]} 53... Kf7 {[%clk
0:00:02.8]} 54. c6 {[%clk 0:00:10.4]} 54... g3 {[%clk 0:00:02.8]} 55. Rc7+
{[%clk 0:00:09.5]} 55... Kf6 {[%clk 0:00:02.5]} 56. Rc8 {[%clk 0:00:09.6]} 56...
Kf7 {[%clk 0:00:02.9]} 57. Rc7+ {[%clk 0:00:09.9]} 57... Kf6 {[%clk 0:00:03.1]}
58. Rc8 {[%clk 0:00:10.3]} 58... Kf7 {[%clk 0:00:03.3]} 1/2-1/2